fUST/lending_fUST_20240909
["ID","MTS","AMOUNT","RATE_DAILY","PERIOD"]
[337589692,1725870625072,-4000.0,0.00040356,60]
[337589693,1725870625097,-4000.0,0.00040356,60]
[337589694,1725870625121,-4000.0,0.00040356,60]
[337589695,1725870625146,-1496.315232,0.00040356,60]
[337589696,1725870625173,-2988.36,0.00040356,30]
[337589697,1725870625202,-2215.72,0.00040356,30]
[337589698,1725870625228,-500.0,0.00040366,30]
[337589699,1725870625253,-500.0,0.00040366,30]
[337589700,1725870625278,-500.0,0.00040366,30]
[337589701,1725870625304,-500.0,0.00040366,30]
[337589702,1725870625329,-500.0,0.00040366,30]
[337589703,1725870625353,-500.0,0.00040366,30]
[337589704,1725870625379,-500.0,0.00040366,30]
[337589705,1725870625403,-500.0,0.00040366,30]
[337589706,1725870625427,-500.0,0.00040366,30]
[337589707,1725870625450,-500.0,0.00040366,30]
[337589708,1725870625475,-500.0,0.00040366,30]
[337589709,1725870625498,-500.0,0.00040366,30]
[337589710,1725870625522,-576.07,0.00040366,30]
[337589711,1725870625546,-500.0,0.00040366,30]
[337589712,1725870625569,-512.69,0.00040366,30]
[337589713,1725870625594,-500.0,0.00040366,30]
[337589714,1725870625617,-308.64,0.00040366,30]
[337589715,1725870625641,-511.55221468,0.00040366,30]
[337589716,1725870625666,-500.0,0.00040366,30]
[337589717,1725870625690,-500.0,0.00040366,30]
[337589718,1725870625716,-500.0,0.00040366,30]
[337589719,1725870625742,-500.0,0.00040366,30]
[337589720,1725870625766,-500.0,0.00040366,30]
[337589721,1725870625790,-217.82200741,0.00040366,30]
[337589722,1725870625816,-500.0,0.00040366,30]
[337589723,1725870625843,-500.0,0.00040366,30]
[337589724,1725870625870,-500.0,0.00040366,30]
[337589725,1725870625896,-500.0,0.00040366,30]
[337589726,1725870625920,-500.0,0.00040366,30]
[337589727,1725870625945,-722.92,0.00040366,30]
[337589728,1725870625970,-524.67,0.00040366,30]
[337589729,1725870625996,-500.0,0.00040366,30]
[337589730,1725870626021,-500.0,0.00040366,30]
[337589731,1725870626045,-500.0,0.00040366,30]
[337589732,1725870626070,-500.0,0.00040366,30]
[337589733,1725870626093,-500.0,0.00040366,30]
[337589734,1725870626277,-500.0,0.00040366,30]
[337589735,1725870626302,-500.0,0.00040366,30]
[337589736,1725870626325,-500.0,0.00040366,30]
[337589737,1725870626348,-517.83078855,0.00040366,30]
[337589738,1725870626372,-638.26,0.00040366,30]
[337589739,1725870626397,-798.86,0.00040366,30]
[337589740,1725870626421,-500.0,0.00040366,30]
[337589741,1725870626445,-500.0,0.00040366,30]
[337589742,1725870626470,-500.0,0.00040366,30]
[337589743,1725870626496,-497.14643082,0.00040366,30]
[337589744,1725870626523,-500.0,0.00040366,30]
[337589745,1725870626549,-1537.93,0.00040366,30]
[337589746,1725870626573,-500.0,0.00040366,30]
[337589747,1725870626599,-500.0,0.00040366,30]
[337589748,1725870626624,-500.0,0.00040366,30]
[337589749,1725870626648,-500.0,0.00040366,30]
[337589750,1725870626672,-500.0,0.00040366,30]
[337589751,1725870626697,-506.03822532,0.00040366,30]
[337589752,1725870626721,-601.64,0.00040366,30]
[337589753,1725870626746,-500.0,0.00040366,30]
[337589754,1725870626770,-500.0,0.00040366,30]
[337589755,1725870626793,-500.0,0.00040366,30]
[337589756,1725870626819,-500.0,0.00040366,30]
[337589757,1725870626842,-500.0,0.00040366,30]
[337589758,1725870626866,-500.0,0.00040366,30]
[337589759,1725870626890,-500.0,0.00040366,30]
[337589760,1725870626915,-500.0,0.00040366,30]
[337589761,1725870626940,-500.0,0.00040366,30]
[337589762,1725870626965,-500.0,0.00040366,30]
[337589763,1725870626988,-500.00407437,0.00040366,30]
[337589764,1725870627014,-870.21,0.00040366,30]
[337589765,1725870627040,-500.0,0.00040366,30]
[337589766,1725870627067,-500.0,0.00040366,30]
[337589767,1725870627092,-500.0,0.00040366,30]
[337589768,1725870627117,-500.0,0.00040366,30]
[337589769,1725870627140,-500.0,0.00040366,30]
[337589770,1725870627164,-500.0,0.00040366,30]
[337589771,1725870627187,-500.0,0.00040366,30]
[337589772,1725870627213,-500.0,0.00040366,30]
[337589773,1725870627237,-574.37,0.00040366,30]
[337589774,1725870627263,-500.0,0.00040366,30]
[337589775,1725870627287,-500.0,0.00040366,30]
[337589776,1725870627313,-500.0,0.00040366,30]
[337589777,1725870627337,-650.14,0.00040366,30]
[337589778,1725870627363,-5515.33,0.00040366,30]
[337589779,1725870627388,-500.0,0.00040366,30]
[337589780,1725870627414,-500.0,0.00040366,30]
[337589781,1725870627438,-500.0,0.00040366,30]
[337589782,1725870627462,-500.0,0.00040366,30]
[337589783,1725870627486,-500.0,0.00040366,30]
[337589784,1725870627510,-500.0,0.00040366,30]
[337589785,1725870627534,-500.0,0.00040366,30]
[337589786,1725870627558,-606.18,0.00040366,30]
[337589787,1725870627582,-2504.2,0.00040366,30]
[337589788,1725870627606,-500.0,0.00040366,30]
[337589789,1725870627630,-500.0,0.00040366,30]
[337589790,1725870627654,-831.9,0.00040366,30]
[337589791,1725870627678,-763.47,0.00040366,30]
[337589792,1725870627703,-541.67,0.00040366,30]
[337589793,1725870627727,-500.0,0.00040366,30]
[337589794,1725870627750,-500.0,0.00040366,30]
[337589795,1725870627774,-500.0,0.00040366,30]
[337589796,1725870627799,-24256.21,0.00040366,30]
[337589797,1725870627824,-559.03,0.00040366,30]
[337589798,1725870627848,-1186.36,0.00040366,30]
[337589799,1725870627873,-1611.32,0.00040366,30]
[337589800,1725870627896,-1125.38,0.00040366,30]
[337589801,1725870627920,-1205.67,0.00040366,30]
[337589802,1725870627944,-498.04118564,0.00040366,30]
[337589803,1725870627969,-501.6634982,0.00040366,30]
[337589804,1725870627993,-502.21524,0.00040366,30]
[337589805,1725870628017,-1687.96,0.00040366,30]
[337589806,1725870628041,-500.0,0.00040366,30]
[337589807,1725870628075,-999.0,0.00040366,30]
[337589808,1725870628098,-500.0,0.00040366,30]
[337589809,1725870628122,-501.36836943,0.00040366,30]
[337589810,1725870628147,-5289.09,0.00040366,30]
[337589811,1725870628171,-500.0,0.00040366,30]
[337589812,1725870628196,-727.98,0.00040366,30]
[337589813,1725870628222,-500.0,0.00040366,30]
[337589814,1725870628247,-4146.89,0.00040366,30]
[337589815,1725870628271,-1693.54,0.00040366,30]
[337589816,1725870628301,-712.24,0.00040366,30]
[337589817,1725870628326,-1595.34,0.00040366,30]
[337589818,1725870628351,-957.41,0.00040366,30]
[337589819,1725870628375,-529.51221289,0.00040366,30]
[337589820,1725870628400,-500.0,0.00040366,30]
[337589821,1725870628424,-531.10593092,0.00040366,30]
[337589822,1725870628449,-2033.33,0.00040366,30]
[337589823,1725870628472,-500.0,0.00040366,30]
[337589824,1725870628497,-1378.92,0.00040366,30]
[337589825,1725870628522,-1222.36,0.00040366,30]
[337589826,1725870628547,-863.93,0.00040366,30]
[337589827,1725870628571,-500.0,0.00040366,30]
[337589828,1725870628595,-500.0,0.00040366,30]
[337589829,1725870628622,-500.0,0.00040366,30]
[337589830,1725870628646,-1875.96,0.00040366,30]
[337589831,1725870628671,-500.0,0.00040366,30]
[337589832,1725870628696,-500.0,0.00040366,30]
[337589833,1725870628723,-763.47,0.00040366,30]
[337589834,1725870628747,-500.0,0.00040366,30]
[337589835,1725870628772,-500.0,0.00040366,30]
[337589836,1725870628798,-500.0,0.00040366,30]
[337589837,1725870628830,-549.47,0.00040366,30]
[337589838,1725870628854,-273.98558914,0.00040366,30]
[337589839,1725870628879,-1165.85,0.00040366,30]
[337589840,1725870629067,-500.0,0.00040366,30]
[337589841,1725870629091,-503.29125632,0.00040366,30]
[337589842,1725870629115,-500.0,0.00040366,30]
[337589843,1725870629139,-1709.49,0.00040366,30]
[337589844,1725870629163,-730.42,0.00040366,30]
[337589845,1725870629189,-914.89,0.00040366,30]
[337589846,1725870629214,-592.27,0.00040366,30]
[337589847,1725870629240,-500.0,0.00040366,30]
[337589848,1725870629264,-500.0,0.00040366,30]
[337589849,1725870629289,-500.0,0.00040366,30]
[337589850,1725870629315,-1899.83,0.00040366,30]
[337589851,1725870629338,-501.50979474,0.00040366,30]
[337589852,1725870629361,-500.0,0.00040366,30]
[337589853,1725870629386,-607.4,0.00040366,30]
[337589854,1725870629411,-48754.61,0.00040366,30]
[337589855,1725870629435,-500.0,0.00040366,30]
[337589856,1725870629459,-500.0,0.00040366,30]
[337589857,1725870629483,-500.0,0.00040366,30]
[337589858,1725870629507,-1393.22,0.00040366,30]
[337589859,1725870629531,-500.0,0.00040366,30]
[337589860,1725870629556,-500.0,0.00040366,30]
[337589861,1725870629582,-1715.27,0.00040393,30]
[337589862,1725870629605,-500.0,0.00040393,30]
[337589863,1725870629629,-1696.32,0.00040393,30]
[337589864,1725870629653,-500.0,0.00040393,30]
[337589865,1725870629676,-811.11,0.00040393,30]
[337589866,1725870629701,-500.0,0.00040393,30]
[337589867,1725870629725,-500.0,0.00040393,30]
[337589868,1725870629750,-1641.62,0.00040393,30]
[337589869,1725870629775,-948.8,0.00040393,30]
[337589870,1725870629800,-500.0,0.00040393,30]
[337589871,1725870629824,-500.0,0.00040393,30]
[337589872,1725870629848,-500.0,0.00040393,30]
[337589873,1725870629872,-500.0,0.00040393,30]
[337589874,1725870629895,-500.0,0.00040393,30]
[337589875,1725870629919,-500.0,0.00040393,30]
[337589876,1725870629943,-500.0,0.00040393,30]
[337589877,1725870629966,-500.0,0.00040393,30]
[337589878,1725870629990,-650.26,0.00040393,30]
[337589879,1725870630014,-1083.73,0.00040393,30]
[337589880,1725870630037,-657.73,0.00040393,30]
[337589881,1725870630062,-2139.15,0.00040393,30]
[337589882,1725870630085,-569.94832445,0.00040393,30]
[337589883,1725870630109,-500.0,0.00040393,30]
[337589884,1725870630132,-240.29694858,0.00040393,30]
[337589885,1725870630158,-500.0,0.00040393,30]
[337589886,1725870630182,-706.08,0.00040393,30]
[337589887,1725870630208,-500.0,0.00040393,30]
[337589888,1725870630233,-500.0,0.00040393,30]
[337589889,1725870630259,-500.0,0.00040393,30]
[337589890,1725870630283,-500.0,0.00040393,30]
[337589891,1725870630311,-500.0,0.00040393,30]
[337589892,1725870630337,-500.0,0.00040393,30]
[337589893,1725870630360,-500.0,0.00040393,30]
[337589894,1725870630384,-1099.47,0.00040393,30]
[337589895,1725870630408,-500.0,0.00040393,30]
[337589896,1725870630432,-884.34,0.00040393,30]
[337589897,1725870630457,-530.3,0.00040393,30]
[337589898,1725870630480,-500.0,0.00040393,30]
[337589899,1725870630504,-500.0,0.00040393,30]
[337589900,1725870630528,-500.0,0.00040393,30]
[337589901,1725870630553,-500.0,0.00040393,30]
[337589902,1725870630578,-500.0,0.00040393,30]
[337589903,1725870630603,-500.0,0.00040393,30]
[337589904,1725870630627,-811.73,0.00040393,30]
[337589905,1725870630651,-500.0,0.00040393,30]
[337589906,1725870630674,-1119.06,0.00040393,30]
[337589907,1725870630698,-500.0,0.00040393,30]
[337589908,1725870630723,-846.86,0.00040393,30]
[337589909,1725870630748,-500.0,0.00040393,30]
[337589910,1725870630777,-1094.56,0.00040393,30]
[337589911,1725870630802,-1089.74,0.00040393,30]
[337589912,1725870630827,-743.95,0.00040393,30]
[337589913,1725870630853,-500.0,0.00040393,30]
[337589914,1725870630878,-835.76,0.00040393,30]
[337589915,1725870630903,-500.0,0.00040393,30]
[337589916,1725870630928,-528.84931873,0.00040393,30]
[337589917,1725870630953,-789.01,0.00040393,30]
[337589918,1725870630978,-2167.77,0.00040393,30]
[337589919,1725870631002,-2287.88,0.00040393,30]
[337589920,1725870631027,-500.0,0.00040393,30]
[337589921,1725870631053,-500.0,0.00040393,30]
[337589922,1725870631084,-500.0,0.00040393,30]
[337589923,1725870631109,-531.6190356,0.00040456,30]
[337589924,1725870631133,-2055.23,0.00040456,30]
[337589925,1725870631158,-90188.97,0.00040456,30]
[337589926,1725870631181,-500.0,0.00040456,30]
[337589927,1725870631210,-500.0,0.00040456,30]
[337589928,1725870631235,-500.0,0.00040456,30]
[337589929,1725870631261,-500.0,0.00040456,30]
[337589930,1725870631288,-500.0,0.00040456,30]
[337589931,1725870631315,-500.0,0.00040456,30]
[337589932,1725870631338,-500.0,0.00040456,30]
[337589933,1725870631363,-1677.37,0.00040456,30]
[337589934,1725870631389,-500.0,0.00040456,30]
[337589935,1725870631414,-500.0,0.00040456,30]
[337589936,1725870631437,-500.0,0.00040456,30]
[337589937,1725870631461,-500.0,0.00040456,30]
[337589938,1725870631485,-500.0,0.00040456,30]
[337589939,1725870631510,-500.0,0.00040456,30]
[337589940,1725870631533,-503.97530236,0.00040456,30]
[337589941,1725870631560,-9093.65,0.00040456,30]
[337589942,1725870631584,-1156.3,0.00040456,30]
[337589944,1725870631608,-1825.62,0.00040456,30]
[337589945,1725870631633,-316.69666454,0.00040456,30]
[337589949,1725870631861,-500.0,0.00040466,30]
[337589950,1725870631887,-500.0,0.00040466,30]
[337589951,1725870631913,-500.0,0.00040466,30]
[337589953,1725870631936,-479.31269855,0.00040466,30]
[337589955,1725870631961,-198.01738721,0.00040476,30]
[337589956,1725870631984,-500.0,0.00040477,30]
[337589958,1725870632008,-500.0,0.00040477,30]
[337589959,1725870632031,-500.0,0.00040477,30]
[337589960,1725870632055,-1250.81,0.00040477,30]
[337589961,1725870632079,-500.64916161,0.00040477,30]
[337589962,1725870632102,-500.0,0.00040477,30]
[337589964,1725870632126,-500.0,0.00040477,30]
[337589967,1725870632150,-500.0,0.00040477,30]
[337589971,1725870632172,-500.0,0.00040477,30]
[337589974,1725870632195,-500.0,0.00040477,30]
[337589977,1725870632221,-500.0,0.00040477,30]
[337589981,1725870632245,-304.23923272,0.00040477,30]
[337589985,1725870632272,-500.0,0.00040477,30]
[337589989,1725870632296,-500.0,0.00040477,30]
[337589992,1725870632322,-317.28491978,0.00040477,30]
[337589996,1725870632345,-502.80610894,0.00040477,30]
[337589999,1725870632370,-500.0,0.00040477,30]
[337590003,1725870632395,-505.09988545,0.00040477,30]
[337590007,1725870632420,-500.0,0.00040477,30]
[337590010,1725870632445,-503.21246827,0.00040477,30]
[337590014,1725870632469,-509.8,0.00040477,30]
[337590018,1725870632494,-503.11618682,0.00040477,30]
[337590021,1725870632517,-551.69796033,0.00040477,30]
[337590025,1725870632542,-500.0,0.00040477,30]
[337590028,1725870632568,-500.0,0.00040477,30]
[337590029,1725870632592,-500.0,0.00040477,30]
[337590030,1725870632615,-500.0,0.00040477,30]
[337590031,1725870632639,-501.11129532,0.00040477,30]
[337590032,1725870632663,-500.0,0.00040477,30]
[337590033,1725870632689,-165.08189432,0.00040477,30]
[337590034,1725870632714,-500.0,0.00040477,30]
[337590035,1725870632739,-500.0,0.00040477,30]
[337590036,1725870632766,-500.0,0.00040477,30]
[337590037,1725870632790,-500.0,0.00040477,30]
[337590038,1725870632814,-221.58185396,0.00040477,30]
[337590039,1725870632838,-500.0,0.00040477,30]
[337590040,1725870632861,-465.5881438,0.00040477,30]
[337590041,1725870632884,-500.0,0.00040477,30]
[337590042,1725870632907,-500.0,0.00040477,30]
[337590043,1725870632935,-500.0,0.00040477,30]
[337590044,1725870632958,-500.0,0.00040477,30]
[337590045,1725870632982,-500.0,0.00040477,30]
[337590046,1725870633006,-500.0,0.00040477,30]
[337590047,1725870633032,-500.0,0.00040477,30]
[337590048,1725870633058,-508.06642066,0.00040487,30]
[337590049,1725870633082,-502.38025334,0.00040487,30]
[337590050,1725870633106,-500.0,0.00040487,30]
[337590051,1725870633132,-215.34495537,0.00040487,30]
[337590052,1725870633157,-321.75807954,0.00040487,30]
[337590053,1725870633185,-557.86,0.00040487,30]
[337590054,1725870633210,-500.0,0.00040487,30]
[337590055,1725870633238,-500.0,0.00040487,30]
[337590056,1725870633263,-503.02667163,0.00040487,30]
[337590057,1725870633292,-552.53404397,0.00040487,30]
[337590058,1725870633319,-500.0,0.00040487,30]
[337590059,1725870633344,-557.73905861,0.00040487,30]
[337590060,1725870633369,-502.54099541,0.00040487,30]
[337590061,1725870633395,-754.81,0.00040487,30]
[337590062,1725870633420,-502.76017035,0.00040487,30]
[337590063,1725870633446,-502.52583941,0.00040487,30]
[337590064,1725870633472,-500.0,0.00040487,30]
[337590065,1725870633497,-500.0,0.00040487,30]
[337590066,1725870633524,-500.0,0.00040487,30]
[337590067,1725870633550,-714.76,0.00040487,30]
[337590068,1725870633575,-500.0,0.00040487,30]
[337590069,1725870633602,-500.0,0.00040487,30]
[337590070,1725870633628,-500.0,0.00040487,30]
[337590071,1725870633654,-500.0,0.00040487,30]
[337590072,1725870633680,-500.0,0.00040487,30]
[337590073,1725870633705,-501.07539123,0.00040487,30]
[337590074,1725870633731,-502.2653026,0.00040487,30]
[337590075,1725870633755,-488.98827786,0.00040487,30]
[337590076,1725870633781,-500.27548472,0.00040487,30]
[337590077,1725870633809,-500.69600853,0.00040487,30]
[337590078,1725870633835,-500.0,0.00040487,30]
[337590079,1725870633860,-175.74119185,0.00040487,30]
[337590080,1725870633884,-500.0,0.00040487,30]
[337590081,1725870633910,-500.0,0.00040487,30]
[337590082,1725870633935,-500.0,0.00040487,30]
[337590083,1725870633960,-500.0,0.00040487,30]
[337590084,1725870633984,-500.0,0.00040487,30]
[337590085,1725870634011,-873.07,0.00040487,30]
[337590086,1725870634036,-500.0,0.00040487,30]
[337590087,1725870634062,-813.11,0.00040487,30]
[337590088,1725870634088,-500.0,0.00040487,30]
[337590089,1725870634112,-500.0,0.00040487,30]
[337590090,1725870634136,-506.1868417,0.00040487,30]
[337590091,1725870634160,-500.0,0.00040487,30]
[337590092,1725870634184,-501.86628336,0.00040487,30]
[337590093,1725870634209,-500.0,0.00040487,30]
[337590094,1725870634237,-500.0,0.00040487,30]
[337590095,1725870634261,-500.0,0.00040487,30]
[337590096,1725870634285,-500.0,0.00040487,30]
[337590097,1725870634314,-504.94604433,0.00040487,30]
[337590098,1725870634339,-2600.33,0.00040487,30]
[337590099,1725870634365,-500.0,0.00040487,30]
[337590100,1725870634391,-500.0,0.00040487,30]
[337590101,1725870634416,-501.6954888,0.00040487,30]
[337590102,1725870634444,-500.85100851,0.00040487,30]
[337590103,1725870634470,-500.0,0.00040487,30]
[337590104,1725870634495,-500.0,0.00040487,30]
[337590105,1725870634689,-340.09263935,0.00040487,30]
[337590106,1725870634715,-500.0,0.00040487,30]
[337590107,1725870634740,-503.02549289,0.00040487,30]
[337590108,1725870634765,-500.0,0.00040487,30]
[337590109,1725870634791,-1385.79,0.00040487,30]
[337590110,1725870634818,-500.0,0.00040487,30]
[337590111,1725870634842,-841.19,0.00040487,30]
[337590112,1725870634866,-922.3,0.00040487,30]
[337590113,1725870634891,-564.76,0.00040487,30]
[337590114,1725870634916,-738.46,0.00040487,30]
[337590115,1725870634942,-988.1,0.00040487,30]
[337590116,1725870634969,-500.0,0.00040487,30]
[337590117,1725870634993,-502.27827561,0.00040487,30]
[337590118,1725870635017,-500.0,0.00040487,30]
[337590119,1725870635041,-413.89825578,0.00040487,30]
[337590120,1725870635066,-500.0,0.00040487,30]
[337590121,1725870635091,-500.0,0.00040487,30]
[337590122,1725870635118,-500.0,0.00040487,30]
[337590123,1725870635142,-952.24,0.00040487,30]
[337590124,1725870635167,-500.0,0.00040487,30]
[337590125,1725870635191,-571.69,0.00040487,30]
[337590126,1725870635216,-571.69,0.00040487,30]
[337590127,1725870635242,-500.0,0.00040487,30]
[337590128,1725870635267,-500.0,0.00040487,30]
[337590129,1725870635290,-500.0,0.00040487,30]
[337590130,1725870635315,-2188.47,0.00040487,30]
[337590131,1725870635339,-500.0,0.00040487,30]
[337590132,1725870635364,-1681.01,0.00040487,30]
[337590133,1725870635388,-599.81,0.00040487,30]
[337590134,1725870635412,-2049.61,0.00040487,30]
[337590135,1725870635436,-500.0,0.00040487,30]
[337590136,1725870635460,-500.0,0.00040487,30]
[337590137,1725870635484,-500.0,0.00040487,30]
[337590138,1725870635508,-500.0,0.00040487,30]
[337590139,1725870635532,-500.0,0.00040487,30]
[337590140,1725870635556,-901.41,0.00040487,30]
[337590141,1725870635580,-500.0,0.00040487,30]
[337590142,1725870635604,-561.15,0.00040487,30]
[337590143,1725870635632,-500.0,0.00040487,30]
[337590144,1725870635657,-1323.75,0.00040487,30]
[337590145,1725870635681,-502.3065198,0.00040487,30]
[337590146,1725870635708,-500.0,0.00040487,30]
[337590147,1725870635733,-579.0,0.00040487,30]
[337590148,1725870635757,-1053.61,0.00040487,30]
[337590149,1725870635784,-504.94583808,0.00040487,30]
[337590150,1725870635809,-505.37585411,0.00040487,30]
[337590151,1725870635836,-500.0,0.00040487,30]
[337590152,1725870635860,-500.0,0.00040487,30]
[337590153,1725870635884,-500.0,0.00040487,30]
[337590154,1725870635908,-671.98,0.00040487,30]
[337590155,1725870635933,-507.88103644,0.00040487,30]
[337590156,1725870635957,-500.0,0.00040487,30]
[337590157,1725870635981,-500.0,0.00040487,30]
[337590158,1725870636005,-1781.14,0.00040487,30]
[337590159,1725870636029,-500.0,0.00040487,30]
[337590160,1725870636056,-508.9550842,0.00040487,30]
[337590161,1725870636080,-4679.18,0.00040487,30]
[337590162,1725870636105,-2034.24,0.00040487,30]
[337590163,1725870636129,-500.0,0.00040487,30]
[337590164,1725870636153,-500.0,0.00040487,30]
[337590165,1725870636177,-500.0,0.00040487,30]
[337590166,1725870636202,-520.67122878,0.00040487,30]
[337590167,1725870636227,-500.0,0.00040487,30]
[337590168,1725870636251,-1430.88,0.00040487,30]
[337590169,1725870636275,-500.0,0.00040487,30]
[337590170,1725870636299,-500.0,0.00040487,30]
[337590171,1725870636322,-500.0,0.00040487,30]
[337590172,1725870636346,-519.14736405,0.00040487,30]
[337590173,1725870636370,-500.0,0.00040487,30]
[337590174,1725870636394,-500.0,0.00040487,30]
[337590175,1725870636418,-1235.27,0.00040487,30]
[337590176,1725870636441,-680.86,0.00040487,30]
[337590177,1725870636465,-670.67,0.00040487,30]
[337590178,1725870636490,-500.0,0.00040487,30]
[337590179,1725870636515,-500.0,0.00040487,30]
[337590180,1725870636540,-1555.96,0.00040487,30]
[337590181,1725870636566,-503.411936,0.00040487,30]
[337590182,1725870636591,-1295.39,0.00040487,30]
[337590183,1725870636615,-500.0,0.00040487,30]
[337590184,1725870636640,-712.56,0.00040487,30]
[337590185,1725870636664,-1608.61,0.00040487,30]
[337590186,1725870636694,-742.89,0.00040487,30]
[337590187,1725870636719,-901.35,0.00040487,30]
[337590188,1725870636747,-640.61,0.00040487,30]
[337590189,1725870636772,-500.0,0.00040487,30]
[337590190,1725870636798,-2216.09,0.00040487,30]
[337590191,1725870636824,-622.19,0.00040487,30]
[337590192,1725870636849,-500.0,0.00040487,30]
[337590193,1725870636874,-938.87,0.00040487,30]
[337590194,1725870636899,-500.0,0.00040487,30]
[337590195,1725870636924,-500.0,0.00040487,30]
[337590196,1725870636951,-500.0,0.00040487,30]
[337590197,1725870636976,-500.0,0.00040487,30]
[337590198,1725870637001,-500.0,0.00040487,30]
[337590199,1725870637025,-1918.47,0.00040487,30]
[337590200,1725870637050,-504.41883942,0.00040487,30]
[337590201,1725870637074,-910.96,0.00040487,30]
[337590202,1725870637098,-500.0,0.00040487,30]
[337590203,1725870637122,-500.0,0.00040487,30]
[337590204,1725870637147,-622.38,0.00040487,30]
[337590205,1725870637170,-503.72972414,0.00040487,30]
[337590206,1725870637194,-500.0,0.00040487,30]
[337590207,1725870637221,-503.05275265,0.00040487,30]
[337590208,1725870637246,-198.25793709,0.00040487,30]
[337590209,1725870637271,-500.0,0.00040487,30]
[337590210,1725870637295,-500.0,0.00040487,30]
[337590211,1725870637491,-500.0,0.00040487,30]
[337590212,1725870637516,-522.14,0.00040487,30]
[337590213,1725870637540,-500.0,0.00040487,30]
[337590215,1725870637566,-500.0,0.00040487,30]
[337590216,1725870637590,-500.0,0.00040487,30]
[337590217,1725870637614,-500.0,0.00040487,30]
[337590218,1725870637638,-500.0,0.00040487,30]
[337590219,1725870637666,-500.0,0.00040487,30]
[337590221,1725870637692,-509.05,0.00040487,30]
[337590224,1725870637717,-500.0,0.00040487,30]
[337590225,1725870637741,-422.73460151,0.00040487,30]
[337590226,1725870637767,-500.0,0.00040487,30]
[337590228,1725870637793,-500.0,0.00040487,30]
[337590231,1725870637821,-500.0,0.00040487,30]
[337590232,1725870637846,-224.62075419,0.00040487,30]
[337590233,1725870637870,-2814.44,0.00040487,30]
[337590234,1725870637897,-500.0,0.00040487,30]
[337590235,1725870637922,-220.83639589,0.00040493,30]
[337590236,1725870637947,-571.69,0.00040493,30]
[337590240,1725870637971,-571.69,0.00040493,30]
[337590243,1725870637995,-571.69,0.00040493,30]
[337590247,1725870638020,-571.69,0.00040493,30]
[337590250,1725870638045,-571.69,0.00040493,30]
[337590253,1725870638071,-571.69,0.00040503,30]
[337590254,1725870638096,-571.69,0.00040503,30]
[337590255,1725870638122,-571.69,0.00040504,30]
[337590256,1725870638146,-500.0,0.00040504,30]
[337590257,1725870638171,-500.0,0.00040504,30]
[337590258,1725870638197,-525.76,0.00040504,30]
[337590259,1725870638225,-500.0,0.00040504,30]
[337590260,1725870638250,-500.0,0.00040504,30]
[337590261,1725870638276,-500.0,0.00040504,30]
[337590262,1725870638303,-500.0,0.00040504,30]
[337590263,1725870638327,-655.37,0.00040504,30]
[337590264,1725870638352,-669.35,0.00040504,30]